bitfinex/quotes_BTCUSD_20241021
["timestamp","ask_amount","ask_price","bid_price","bid_amount"]
[1729488166248,0.000827,69131.0,69130.0,0.47246657]
[1729488166693,0.000827,69131.0,69130.0,0.47946657]
[1729488167204,0.000827,69131.0,69130.0,0.41848351]
[1729488167428,0.000827,69131.0,69130.0,0.46546139]
[1729488167639,0.000827,69131.0,69130.0,0.47946139]
[1729488171318,0.000827,69131.0,69130.0,0.46546139]
[1729488171539,0.000827,69131.0,69130.0,0.47246139]
[1729488172036,0.000827,69131.0,69130.0,0.47946139]
[1729488174505,0.000827,69131.0,69130.0,0.42548351]
[1729488174707,0.000827,69131.0,69130.0,0.47947409]
[1729488174929,0.000827,69131.0,69130.0,0.45796626]
[1729488175267,0.000827,69131.0,69130.0,0.4794743]
[1729488178179,0.000827,69131.0,69130.0,0.474952]
[1729488178392,0.000827,69131.0,69130.0,0.47948752]
[1729488178828,0.000827,69131.0,69130.0,0.47248752]
[1729488179257,0.000827,69131.0,69130.0,0.47948752]
[1729488179487,0.000827,69131.0,69130.0,0.47248752]
[1729488180171,0.000827,69131.0,69130.0,0.47948752]
[1729488180618,0.000827,69131.0,69130.0,0.47248752]
[1729488180863,0.000827,69131.0,69130.0,0.47948752]
[1729488181076,0.000827,69131.0,69130.0,0.47248752]
[1729488181741,0.000827,69131.0,69130.0,0.54728752]
[1729488181960,0.000827,69131.0,69130.0,0.56128752]
[1729488182867,0.000827,69131.0,69130.0,0.55628752]
[1729488183078,0.000827,69131.0,69130.0,0.61110539]
[1729488183305,0.000827,69131.0,69130.0,0.60410539]
[1729488183557,0.000827,69131.0,69130.0,0.61110539]
[1729488183811,0.000827,69131.0,69130.0,0.80162251]
[1729488184041,0.000827,69131.0,69130.0,0.65462321]
[1729488184256,0.000827,69131.0,69130.0,0.68314322]
[1729488184468,0.000827,69131.0,69130.0,0.68314331]
[1729488184695,0.000827,69131.0,69130.0,0.70035931]
[1729488185129,0.000827,69131.0,69130.0,0.69335931]
[1729488185345,0.000827,69131.0,69130.0,0.71111931]
[1729488185554,0.000827,69131.0,69130.0,0.71277731]
[1729488185765,0.000827,69131.0,69130.0,0.71977731]
[1729488186701,0.00082,69137.0,69130.0,0.71977731]
[1729488186702,0.00082,69137.0,69132.0,0.02169173]
[1729488186917,0.00082,69137.0,69132.0,0.71648625]
[1729488187162,0.00082,69137.0,69132.0,0.71373668]
[1729488187824,0.00082,69137.0,69132.0,0.72073668]
[1729488188045,0.00082,69137.0,69132.0,0.72773668]
[1729488189852,0.00082,69137.0,69132.0,0.74094899]
[1729488190063,0.00082,69137.0,69132.0,0.41613668]
[1729488190282,0.08192,69137.0,69132.0,0.50027986]
[1729488190502,0.08192,69137.0,69132.0,0.38565672]
[1729488190739,0.08192,69137.0,69132.0,0.37131881]
[1729488190958,0.08192,69137.0,69132.0,0.34332979]
[1729488191170,0.08192,69137.0,69132.0,0.36053504]
[1729488191614,0.08192,69137.0,69132.0,0.38353504]
[1729488192271,0.08192,69137.0,69132.0,0.51251574]
[1729488192737,0.08192,69137.0,69132.0,0.38353504]
[1729488193645,0.00082,69137.0,69132.0,0.38353504]
[1729488193871,0.00082,69137.0,69132.0,0.51253603]
[1729488194061,0.00082,69137.0,69132.0,0.38353504]
[1729488194368,0.00082,69137.0,69132.0,0.37901269]
[1729488194607,0.00082,69137.0,69132.0,0.38353489]
[1729488195268,0.00082,69137.0,69132.0,0.37653489]
[1729488195776,0.00082,69137.0,69132.0,0.38353489]
[1729488196011,0.00082,69137.0,69132.0,0.5125599]
[1729488196261,0.00082,69137.0,69132.0,0.5055599]
[1729488196503,0.00082,69137.0,69132.0,0.5125599]
[1729488196953,0.00082,69137.0,69132.0,0.4985599]
[1729488197188,0.00082,69137.0,69132.0,0.5055599]
[1729488197426,0.00082,69137.0,69132.0,0.37653489]
[1729488197661,0.00082,69137.0,69132.0,0.50557504]
[1729488197909,0.00082,69137.0,69132.0,0.51257504]
[1729488198368,0.00082,69137.0,69132.0,0.38353489]
[1729488206717,0.101399,69134.0,69132.0,0.38353489]
[1729488207170,0.101399,69134.0,69132.0,0.37853489]
[1729488207409,0.101399,69134.0,69132.0,0.38353489]
[1729488207849,0.101399,69134.0,69132.0,0.37653489]
[1729488208293,0.101399,69134.0,69132.0,0.35933098]
[1729488208508,0.101399,69134.0,69132.0,0.33782308]
[1729488208734,0.101399,69134.0,69132.0,0.35233098]
[1729488209031,0.101399,69134.0,69132.0,0.35933098]
[1729488209250,0.101399,69134.0,69132.0,0.35233098]
[1729488209477,0.101399,69134.0,69132.0,0.36033098]
[1729488209694,0.101399,69134.0,69132.0,0.36733098]
[1729488209890,0.101399,69134.0,69132.0,0.35933098]
[1729488210355,0.101399,69134.0,69132.0,0.36733098]
[1729488210819,0.101399,69134.0,69132.0,0.34582308]
[1729488211244,0.101399,69134.0,69132.0,0.36733098]
[1729488211467,0.101399,69134.0,69132.0,0.34582308]
[1729488215694,0.101399,69134.0,69132.0,0.34582338]
[1729488215926,0.101399,69134.0,69132.0,0.31782338]
[1729488216167,0.101399,69134.0,69132.0,0.31330088]
[1729488216407,0.101399,69134.0,69132.0,0.31782345]
[1729488216702,0.101399,69134.0,69132.0,0.42537109]
[1729488217406,0.101399,69134.0,69132.0,0.42536293]
[1729488217607,0.101399,69134.0,69132.0,0.42536147]
[1729488219280,0.101399,69134.0,69132.0,0.44686603]
[1729488219741,0.101399,69134.0,69132.0,0.33932801]
[1729488220221,0.101399,69134.0,69132.0,0.4468539]
[1729488221874,0.101399,69134.0,69132.0,0.33932801]
[1729488222326,0.101399,69134.0,69132.0,0.3393432]
[1729488222859,0.21645652,69133.0,69132.0,0.12706052]
[1729488223116,0.322268,69133.0,69132.0,0.04104232]
[1729488223340,0.4340222,69133.0,69132.0,0.03651973]
[1729488223579,0.4340222,69133.0,69132.0,0.015]
[1729488223811,0.53566362,69133.0,69132.0,0.007]
[1729488224334,0.4340222,69133.0,69132.0,0.007]
[1729488224570,0.4340222,69133.0,69132.0,0.015]
[1729488225031,0.4340222,69133.0,69132.0,0.008]
[1729488225500,0.4340222,69133.0,69132.0,0.012]
[1729488225739,0.005,69132.0,69131.0,0.001658]
[1729488225988,0.42585,69132.0,69131.0,0.001658]
[1729488226220,0.43327203,69132.0,69131.0,0.001658]
[1729488227631,0.50719243,69132.0,69131.0,0.001658]
[1729488228379,0.66815158,69132.0,69131.0,0.001658]
[1729488228603,0.68388993,69132.0,69131.0,0.001658]
[1729488229068,0.68188993,69132.0,69131.0,0.001658]
[1729488229294,0.66615158,69132.0,69131.0,0.001658]
[1729488229510,0.66815158,69132.0,69131.0,0.001658]
[1729488229977,0.66615158,69132.0,69131.0,0.001658]
[1729488230405,0.66815158,69132.0,69131.0,0.001658]
[1729488231506,0.59223118,69132.0,69131.0,0.002658]
[1729488232453,0.59223118,69132.0,69131.0,0.001658]
[1729488232680,0.59223118,69132.0,69131.0,0.002658]
[1729488233110,0.59223118,69132.0,69131.0,0.003658]
[1729488233314,0.59223118,69132.0,69131.0,0.002658]
[1729488233537,0.59223118,69132.0,69131.0,0.003658]
[1729488234420,0.59423118,69132.0,69131.0,0.002658]
[1729488234856,0.59423118,69132.0,69131.0,0.003658]
[1729488235085,0.59423118,69132.0,69131.0,0.001658]
[1729488235517,0.68456906,69132.0,69131.0,0.002658]
[1729488235781,0.59423118,69132.0,69131.0,0.001658]
[1729488237745,0.59223118,69132.0,69131.0,0.001658]
[1729488238411,0.43327203,69132.0,69131.0,0.001658]
[1729488239316,0.42739911,69132.0,69131.0,0.001658]
[1729488239565,0.42739911,69132.0,69131.0,0.005658]
[1729488240023,0.42739911,69132.0,69131.0,0.001658]
[1729488240940,0.42739911,69132.0,69131.0,0.005658]
[1729488241399,0.42739911,69132.0,69131.0,0.009658]
[1729488241835,0.41997708,69132.0,69131.0,0.009658]
[1729488249391,0.14465,69132.0,69131.0,0.009658]
[1729488249633,0.00082,69133.0,69131.0,0.099958]
[1729488250267,0.145468,69133.0,69131.0,0.099958]
[1729488250478,0.00082,69133.0,69131.0,0.095958]
[1729488250897,0.14465,69132.0,69131.0,0.099958]
[1729488251104,0.14465,69132.0,69131.0,0.095958]
[1729488251307,0.14465,69132.0,69131.0,0.094958]
[1729488251513,0.00082,69133.0,69131.0,0.094958]
[1729488251721,0.00082,69133.0,69131.0,0.091958]
[1729488252147,0.00082,69133.0,69131.0,0.095958]
[1729488252581,0.00082,69133.0,69131.0,0.099958]
[1729488252792,0.00082,69133.0,69131.0,0.095958]
[1729488253000,0.00082,69133.0,69131.0,0.099958]
[1729488254083,0.000829,69132.0,69131.0,0.099958]
[1729488254298,0.000829,69132.0,69131.0,0.091958]
[1729488254534,0.000829,69132.0,69131.0,0.24091715]
[1729488254808,0.000829,69132.0,69131.0,0.50466088]
[1729488255017,0.000829,69132.0,69131.0,0.54157739]
[1729488255271,0.000829,69132.0,69131.0,0.50366088]
[1729488255466,0.000829,69132.0,69131.0,0.50166088]
[1729488255678,0.000829,69132.0,69131.0,0.56603565]
[1729488255919,0.000829,69132.0,69131.0,0.56303565]
[1729488256352,0.000829,69132.0,69131.0,0.57003565]
[1729488256596,0.000829,69132.0,69131.0,0.57455799]
[1729488256849,0.000829,69132.0,69131.0,0.62447451]
[1729488257075,0.000829,69132.0,69131.0,0.51718322]
[1729488257299,0.000829,69132.0,69131.0,0.51018278]
[1729488257753,0.000829,69132.0,69131.0,0.52018278]
[1729488258427,0.000829,69132.0,69131.0,0.51318278]
[1729488258679,0.000829,69132.0,69131.0,0.52718278]
[1729488259130,0.000829,69132.0,69131.0,0.52018278]
[1729488259587,0.000829,69132.0,69131.0,0.52918278]
[1729488260049,0.000829,69132.0,69131.0,0.52218278]
[1729488260278,0.000829,69132.0,69131.0,0.52918278]
[1729488260739,0.000829,69132.0,69131.0,0.51518278]
[1729488260963,0.000829,69132.0,69131.0,0.52918278]
[1729488261418,0.000829,69132.0,69131.0,0.52218278]
[1729488261857,0.000829,69132.0,69131.0,0.52918278]
[1729488262085,0.000829,69132.0,69131.0,0.52466088]
[1729488262317,0.000829,69132.0,69131.0,0.52218266]
[1729488262587,0.000829,69132.0,69131.0,0.52918266]
[1729488262806,0.000829,69132.0,69131.0,0.63635689]
[1729488263698,0.000829,69132.0,69131.0,0.62935689]
[1729488263939,0.000829,69132.0,69131.0,0.62733993]
[1729488264635,0.000829,69132.0,69131.0,0.52018266]
[1729488264857,0.000829,69132.0,69131.0,0.52718266]
[1729488265304,0.000829,69132.0,69131.0,0.52018266]
[1729488265753,0.000829,69132.0,69131.0,0.52718266]
[1729488265992,0.000829,69132.0,69131.0,0.52918266]
[1729488266743,0.000829,69132.0,69131.0,0.61487441]
[1729488267934,0.000829,69132.0,69131.0,0.71487441]
[1729488268174,0.000829,69132.0,69131.0,0.62918266]
[1729488268396,0.000829,69132.0,69131.0,0.64631792]
[1729488268617,0.000829,69132.0,69131.0,0.73198463]
[1729488268860,0.000829,69132.0,69131.0,0.72498463]
[1729488269349,0.000829,69132.0,69131.0,0.6393199]
[1729488269555,0.000829,69132.0,69131.0,0.70356206]
[1729488269767,0.000829,69132.0,69131.0,0.6323199]
[1729488270267,0.000829,69132.0,69131.0,0.6463199]
[1729488270463,0.000829,69132.0,69131.0,0.6393199]
[1729488270683,0.000829,69132.0,69131.0,0.69655342]
[1729488270912,0.000829,69132.0,69131.0,0.71055342]
[1729488271149,0.000829,69132.0,69131.0,0.68441618]
[1729488271374,0.000829,69132.0,69131.0,0.69655342]
[1729488271618,0.000829,69132.0,69131.0,0.70355342]
[1729488271831,0.000829,69132.0,69131.0,0.6393199]
[1729488273222,0.000829,69132.0,69131.0,0.6463199]
[1729488273437,0.000829,69132.0,69131.0,0.6393199]
[1729488273881,0.000829,69132.0,69131.0,0.69653452]
[1729488274337,0.000829,69132.0,69131.0,0.71053452]
[1729488274584,0.000829,69132.0,69131.0,0.6463199]
[1729488274796,0.000829,69132.0,69131.0,0.6393199]
[1729488275017,0.000829,69132.0,69131.0,0.6463199]
[1729488275469,0.000829,69132.0,69131.0,0.62918264]
[1729488275696,0.000829,69132.0,69131.0,0.64633485]
[1729488276415,0.000829,69132.0,69131.0,0.63933485]
[1729488276656,0.000829,69132.0,69131.0,0.73195434]
[1729488277756,0.000829,69132.0,69131.0,0.73895434]
[1729488279578,0.000829,69132.0,69131.0,0.65333485]
[1729488280693,0.000829,69132.0,69131.0,0.76035922]
[1729488282043,0.000829,69132.0,69131.0,0.75835922]
[1729488282711,0.000829,69132.0,69131.0,0.63418264]
[1729488283160,0.000829,69132.0,69131.0,0.63618264]
[1729488283393,0.000829,69132.0,69131.0,0.65338457]
[1729488284294,0.00082,69133.0,69132.0,0.28934173]
[1729488284555,0.00082,69133.0,69132.0,0.45802457]
[1729488284982,0.00082,69133.0,69132.0,0.55582457]
[1729488286043,0.00082,69133.0,69132.0,0.55782457]
[1729488286049,0.00082,69133.0,69132.0,0.54762264]
[1729488286218,0.00082,69133.0,69132.0,0.56485525]
[1729488286880,0.00082,69133.0,69132.0,0.57185525]
[1729488287727,0.00082,69133.0,69132.0,0.61665802]
[1729488289587,0.00082,69133.0,69132.0,0.59942541]
[1729488289771,0.00082,69133.0,69132.0,0.60108341]
[1729488290208,0.00082,69133.0,69132.0,0.61832596]
[1729488293387,0.00082,69133.0,69132.0,0.61832605]
[1729488294051,0.00082,69133.0,69132.0,0.60932605]
[1729488294898,0.00082,69133.0,69132.0,0.73807549]
[1729488295339,0.00082,69133.0,69132.0,0.60932605]
[1729488297119,0.00082,69133.0,69132.0,0.60480429]
[1729488297355,0.00082,69133.0,69132.0,0.60932673]
[1729488300669,0.00082,69133.0,69132.0,0.60480497]
[1729488300895,0.00082,69133.0,69132.0,0.59208342]
[1729488301145,0.00082,69133.0,69132.0,0.60932735]
[1729488301908,0.00082,69133.0,69132.0,0.60732735]
[1729488302759,0.00082,69133.0,69132.0,0.60932735]
[1729488303404,0.00082,69133.0,69132.0,0.60932734]
[1729488305553,0.00082,69133.0,69132.0,0.68892734]
[1729488308394,0.002999,69134.0,69133.0,0.01069173]
[1729488308603,0.002999,69134.0,69133.0,0.59665975]
[1729488308830,0.002999,69134.0,69133.0,0.59376734]
[1729488309874,0.002999,69134.0,69133.0,0.60076734]
[1729488310098,0.002999,69134.0,69133.0,0.60776734]
[1729488311477,0.002999,69134.0,69133.0,0.6077673]
[1729488311929,0.002999,69134.0,69133.0,0.6097673]
[1729488313747,0.002999,69134.0,69133.0,0.6077673]
[1729488313967,0.003828,69134.0,69133.0,0.6077673]
[1729488314859,0.003828,69134.0,69133.0,0.61948337]
[1729488315131,0.003828,69134.0,69133.0,0.59052337]
[1729488315335,0.003828,69134.0,69133.0,0.60776461]
[1729488318592,0.003828,69134.0,69133.0,0.59052337]
[1729488319035,0.003828,69134.0,69133.0,0.60776537]
[1729488320430,0.551858,69134.0,69133.0,0.60776537]
[1729488322145,0.551858,69134.0,69133.0,0.59052337]
[1729488322365,0.551858,69134.0,69133.0,0.60776501]
[1729488322580,0.551858,69134.0,69133.0,0.62500664]
[1729488323509,0.551858,69134.0,69133.0,0.607765]
[1729488324218,0.551858,69134.0,69133.0,0.59724328]
[1729488324433,0.551858,69134.0,69133.0,0.59052337]
[1729488324647,0.551858,69134.0,69133.0,0.60776499]
[1729488324948,0.551858,69134.0,69133.0,0.63672499]
[1729488325186,0.551858,69134.0,69133.0,0.60776499]
[1729488326138,0.551858,69134.0,69133.0,0.59052337]
[1729488326357,0.551858,69134.0,69133.0,0.59218137]
[1729488327189,0.551858,69134.0,69133.0,0.60942303]
[1729488328131,0.551858,69134.0,69133.0,0.50952303]
[1729488330945,0.551858,69134.0,69133.0,0.51152303]
[1729488331177,0.551858,69134.0,69133.0,0.50952303]
[1729488331600,0.551858,69134.0,69133.0,0.60672303]
[1729488333997,0.551858,69134.0,69133.0,0.60672488]
[1729488334432,0.551858,69134.0,69133.0,0.60672552]
[1729488338450,0.551858,69134.0,69133.0,0.50952552]
[1729488345240,0.551858,69134.0,69133.0,0.48775965]
[1729488345498,0.551858,69134.0,69133.0,0.50953181]
[1729488346750,0.551858,69134.0,69133.0,0.50401009]
[1729488347002,0.551858,69134.0,69133.0,0.50953181]
[1729488348325,0.551858,69134.0,69133.0,0.50501009]
[1729488348560,0.551858,69134.0,69133.0,0.40353179]
[1729488348967,0.633558,69134.0,69133.0,0.40353179]
[1729488351223,0.633558,69134.0,69133.0,0.59452089]
[1729488351467,0.633558,69134.0,69133.0,0.54971812]
[1729488352844,0.633558,69134.0,69133.0,0.53246768]
[1729488353100,0.633558,69134.0,69133.0,0.54971477]
[1729488353326,0.633558,69134.0,69133.0,0.35872567]
[1729488355204,0.551858,69134.0,69133.0,0.38768567]
[1729488355414,0.551858,69134.0,69133.0,0.35872205]
[1729488355894,0.551858,69134.0,69133.0,0.34147889]
[1729488356856,0.551858,69134.0,69133.0,0.3587216]
[1729488364979,0.551858,69134.0,69133.0,0.34147883]
[1729488365236,0.551858,69134.0,69133.0,0.3587203]
[1729488371614,0.551858,69134.0,69133.0,0.36949844]
[1729488373650,0.551858,69134.0,69133.0,0.58830345]
[1729488373890,0.551858,69134.0,69133.0,0.6386563]
[1729488374142,0.551858,69134.0,69133.0,0.59030345]
[1729488375816,0.551858,69134.0,69133.0,0.57952505]
[1729488376065,0.551858,69134.0,69133.0,0.59676856]
[1729488376530,0.551858,69134.0,69133.0,0.59030428]
[1729488376989,0.551858,69134.0,69133.0,0.61202833]
[1729488377713,0.551858,69134.0,69133.0,0.61402833]
[1729488380658,0.551858,69134.0,69133.0,0.61202833]
[1729488383663,0.551858,69134.0,69133.0,0.61402833]
[1729488384601,0.551858,69134.0,69133.0,0.61202833]
[1729488384785,0.551858,69134.0,69133.0,0.62906705]
[1729488385014,0.551858,69134.0,69133.0,0.62907186]
[1729488385207,0.551858,69134.0,69133.0,0.60607186]
[1729488385707,0.551858,69134.0,69133.0,0.55649705]
[1729488385919,0.551858,69134.0,69133.0,0.58882821]
[1729488386137,0.551858,69134.0,69133.0,0.6060715]
[1729488386573,0.551858,69134.0,69133.0,0.6290715]
[1729488387720,0.551858,69134.0,69133.0,0.43812797]
[1729488387903,0.551858,69134.0,69133.0,0.62904189]
[1729488391145,0.551858,69134.0,69133.0,0.62687214]
[1729488392030,0.551858,69134.0,69133.0,0.62904192]
[1729488392940,0.551858,69134.0,69133.0,0.438128]
[1729488394262,0.551858,69134.0,69133.0,0.72764192]
[1729488394529,0.551858,69134.0,69133.0,0.53455822]
[1729488395235,0.551858,69134.0,69133.0,0.79414043]
[1729488395486,0.551858,69134.0,69133.0,0.76518043]
[1729488395933,0.5258143,69134.0,69133.0,0.76518043]
[1729488396162,0.5258143,69134.0,69133.0,0.75865855]
[1729488396404,0.5258143,69134.0,69133.0,0.71478017]
[1729488396627,0.5258143,69134.0,69133.0,0.73200713]
[1729488396843,0.5258143,69134.0,69133.0,0.74277398]
[1729488400117,0.5258143,69134.0,69133.0,0.74477398]
[1729488402390,0.5258143,69134.0,69133.0,0.46607398]
[1729488403706,0.5258143,69134.0,69133.0,0.4165465]
[1729488406547,0.5266433,69134.0,69133.0,0.4165465]
[1729488406988,0.5266433,69134.0,69133.0,0.41654665]
[1729488407215,0.5266433,69134.0,69133.0,0.41654782]
[1729488408523,0.5266433,69134.0,69133.0,0.41202623]
[1729488408741,0.5266433,69134.0,69133.0,0.41654782]
[1729488413844,0.5266433,69134.0,69133.0,0.4165478]
[1729488414046,0.5266433,69134.0,69133.0,0.4979478]
[1729488414478,0.5266433,69134.0,69133.0,0.4999478]
[1729488414730,0.5266433,69134.0,69133.0,0.4979478]
[1729488418572,0.5266433,69134.0,69133.0,0.49795121]
[1729488420887,0.5266433,69134.0,69133.0,0.49795326]
[1729488421337,0.5266433,69134.0,69133.0,0.41655439]
[1729488422236,0.5266433,69134.0,69133.0,0.41186266]
[1729488422502,0.6236433,69134.0,69133.0,0.41655439]
[1729488422708,0.6236433,69134.0,69133.0,0.60739161]
[1729488423181,0.6236433,69134.0,69133.0,0.60287004]
[1729488423364,0.6236433,69134.0,69133.0,0.60739187]
[1729488425423,0.6236433,69134.0,69133.0,0.56248686]
[1729488425677,0.6236433,69134.0,69133.0,0.6073623]
[1729488426324,0.6236433,69134.0,69133.0,0.56248686]
[1729488426549,0.6236433,69134.0,69133.0,0.52996346]
[1729488426807,0.6236433,69134.0,69133.0,0.56248916]
[1729488427243,0.5266433,69134.0,69133.0,0.56248916]
[1729488427455,0.5266433,69134.0,69133.0,0.41652468]
[1729488427668,0.5266433,69134.0,69133.0,0.60733505]
[1729488430406,0.5266433,69134.0,69133.0,0.56246231]
[1729488430638,0.5266433,69134.0,69133.0,0.22700394]
[1729488431299,0.5266433,69134.0,69133.0,0.37165194]
[1729488437138,0.5266433,69134.0,69133.0,0.37164897]
[1729488440590,0.5266433,69134.0,69133.0,0.41652411]
[1729488442809,0.5266433,69134.0,69133.0,0.38852314]
[1729488443295,0.5266433,69134.0,69133.0,0.41652679]
[1729488444215,0.5266433,69134.0,69133.0,0.4165268]
[1729488444950,0.5266433,69134.0,69133.0,0.37165166]
[1729488445408,0.7033433,69134.0,69133.0,0.21367624]
[1729488445652,0.7033433,69134.0,69133.0,0.34395993]
[1729488445888,0.7033433,69134.0,69133.0,0.34865166]
[1729488446115,0.7033433,69134.0,69133.0,0.34165166]
[1729488446358,0.7033433,69134.0,69133.0,0.34865166]
[1729488446599,0.7033433,69134.0,69133.0,0.33465166]
[1729488446833,0.7033433,69134.0,69133.0,0.33695993]
[1729488447086,0.7033433,69134.0,69133.0,0.33795993]
[1729488447334,0.7033433,69134.0,69133.0,0.44564782]
[1729488447627,0.7033433,69134.0,69133.0,0.44464856]
[1729488447869,0.7033433,69134.0,69133.0,0.30800056]
[1729488448355,0.7033433,69134.0,69133.0,0.28645159]
[1729488448574,0.7033433,69134.0,69133.0,0.43109959]
[1729488448802,0.7033433,69134.0,69133.0,0.34496067]
[1729488449017,0.7033433,69134.0,69133.0,0.33796067]
[1729488449469,0.7033433,69134.0,69133.0,0.34596067]
[1729488449702,0.7033433,69134.0,69133.0,0.33796067]
[1729488450132,0.7033433,69134.0,69133.0,0.32996067]
[1729488450373,0.7033433,69134.0,69133.0,0.40254443]
[1729488450614,0.7033433,69134.0,69133.0,0.41054443]
[1729488451344,0.7033433,69134.0,69133.0,0.33796067]
[1729488452433,0.7033433,69134.0,69133.0,0.3379608]
[1729488452685,0.7033433,69134.0,69133.0,0.3459608]
[1729488453346,0.7033433,69134.0,69133.0,0.38900053]
[1729488454005,0.7033433,69134.0,69133.0,0.24435253]
[1729488454235,0.7033433,69134.0,69133.0,0.03512063]
[1729488454479,0.7033433,69134.0,69133.0,0.03059799]
[1729488454706,0.7033433,69134.0,69133.0,0.03512085]
[1729488455684,0.7033433,69134.0,69133.0,0.02712085]
[1729488456169,1.02410563,69134.0,69133.0,0.02712085]
[1729488456413,1.02910563,69134.0,69133.0,0.008658]
[1729488456882,1.02910563,69134.0,69133.0,0.016658]
[1729488457112,1.02910563,69134.0,69133.0,0.009658]
[1729488457359,1.02910563,69134.0,69133.0,0.008658]
[1729488457579,0.9579893,69134.0,69133.0,0.009658]
[1729488458082,0.9579893,69134.0,69133.0,0.016658]
[1729488458803,0.9579893,69134.0,69133.0,0.008658]
[1729488459030,0.9579893,69134.0,69133.0,0.016658]
[1729488459255,0.9579893,69134.0,69133.0,0.009658]
[1729488459489,0.9579893,69134.0,69133.0,0.017658]
[1729488459706,0.9579893,69134.0,69133.0,0.009658]
[1729488459941,0.9579893,69134.0,69133.0,0.017658]
[1729488460384,1.10694845,69134.0,69133.0,0.009658]
[1729488460607,0.9579893,69134.0,69133.0,0.009658]
[1729488461987,0.9579893,69134.0,69133.0,0.017658]
[1729488462443,0.9579893,69134.0,69133.0,0.009658]
[1729488462894,0.8529893,69134.0,69133.0,0.009658]
[1729488463384,0.8579893,69134.0,69133.0,0.017658]
[1729488463606,0.8579893,69134.0,69133.0,0.009658]
[1729488464049,0.8579893,69134.0,69133.0,0.016658]
[1729488464275,0.8579893,69134.0,69133.0,0.009658]
[1729488464950,0.7083433,69134.0,69133.0,0.001658]
[1729488465694,0.7033433,69134.0,69133.0,0.001658]
[1729488465921,0.5306433,69134.0,69133.0,0.009658]
[1729488466163,0.5306433,69134.0,69133.0,0.017658]
[1729488466391,0.5306433,69134.0,69133.0,0.001658]
[1729488466645,0.5306433,69134.0,69133.0,0.009658]
[1729488466904,0.5306433,69134.0,69133.0,0.017658]
[1729488467124,0.5306433,69134.0,69133.0,0.001658]
[1729488467353,0.79489733,69134.0,69133.0,0.009658]
[1729488467589,0.79489733,69134.0,69133.0,0.017658]
[1729488467590,0.97079733,69134.0,69133.0,0.017658]
[1729488467854,0.97079733,69134.0,69133.0,0.009658]
[1729488468065,0.97079733,69134.0,69133.0,0.017658]
[1729488468770,0.97079733,69134.0,69133.0,0.009658]
[1729488469496,0.97579733,69134.0,69133.0,0.009658]
[1729488469715,0.8611893,69134.0,69133.0,0.009658]
[1729488470168,0.8611893,69134.0,69133.0,0.017658]
[1729488470421,0.8561893,69134.0,69133.0,0.009658]
[1729488470897,0.8611893,69134.0,69133.0,0.017658]
[1729488471340,1.00544653,69134.0,69133.0,0.017658]
[1729488472342,0.8611893,69134.0,69133.0,0.017658]
[1729488472915,0.8561893,69134.0,69133.0,0.017658]
[1729488473144,0.8611893,69134.0,69133.0,0.017658]
[1729488473792,0.8561893,69134.0,69133.0,0.017658]
[1729488474004,0.8611893,69134.0,69133.0,0.017658]
[1729488475141,0.8561893,69134.0,69133.0,0.017658]
[1729488477917,0.7115433,69134.0,69133.0,0.017658]
[1729488478149,0.8561893,69134.0,69133.0,0.017658]
[1729488483517,1.00044653,69134.0,69133.0,0.017658]
[1729488483694,1.10544653,69134.0,69133.0,0.017658]
[1729488484145,1.10744653,69134.0,69133.0,0.017658]
[1729488484363,1.10544653,69134.0,69133.0,0.017658]
[1729488487808,1.10744653,69134.0,69133.0,0.017658]
[1729488488034,0.9611893,69134.0,69133.0,0.017658]
[1729488493222,0.8671893,69134.0,69133.0,0.017658]
[1729488494377,0.8621893,69134.0,69133.0,0.017658]
[1729488494598,0.7852893,69134.0,69133.0,0.017658]
[1729488499131,0.7802893,69134.0,69133.0,0.017658]
[1729488501121,0.6356433,69134.0,69133.0,0.017658]
[1729488501856,0.6802893,69134.0,69133.0,0.017658]
[1729488504906,0.5356433,69134.0,69133.0,0.017658]
[1729488505136,0.6802893,69134.0,69133.0,0.017658]
[1729488507596,0.5306433,69134.0,69133.0,0.017658]
[1729488508504,0.5356433,69134.0,69133.0,0.017658]
[1729488508728,0.5306433,69134.0,69133.0,0.017658]
[1729488509675,0.5306433,69134.0,69133.0,0.36424006]
[1729488509676,0.5266433,69134.0,69133.0,0.36424006]
[1729488509863,0.5266433,69134.0,69133.0,0.53513603]
[1729488510098,0.5266433,69134.0,69133.0,0.53061312]
[1729488510316,0.5266433,69134.0,69133.0,0.66428527]
[1729488510562,0.5266433,69134.0,69133.0,0.52711649]
[1729488510809,0.5266433,69134.0,69133.0,0.62674781]
[1729488511054,0.5266433,69134.0,69133.0,0.65528518]
[1729488511283,0.5266433,69134.0,69133.0,0.52611624]
[1729488511518,0.5266433,69134.0,69133.0,0.50557887]
[1729488511753,0.5266433,69134.0,69133.0,0.51257887]
[1729488511977,0.5266433,69134.0,69133.0,0.50557887]
[1729488512416,0.5266433,69134.0,69133.0,0.50457887]
[1729488513887,0.5266433,69134.0,69133.0,0.51157887]
[1729488516896,0.5266433,69134.0,69133.0,0.50831641]
[1729488517379,0.5266433,69134.0,69133.0,0.52231641]
[1729488518547,0.5266433,69134.0,69133.0,0.50831641]
[1729488518762,0.5266433,69134.0,69133.0,0.53249167]
[1729488518989,0.5266433,69134.0,69133.0,0.53949167]
[1729488520326,0.5266433,69134.0,69133.0,0.6468433]
[1729488520987,0.5266433,69134.0,69133.0,0.64683785]
[1729488521884,0.5266433,69134.0,69133.0,0.6468342]
[1729488522352,0.5266433,69134.0,69133.0,0.53948257]
[1729488524423,0.5266433,69134.0,69133.0,0.61832018]
[1729488524659,0.5266433,69134.0,69133.0,0.58589449]
[1729488524886,0.5266433,69134.0,69133.0,0.62532019]
[1729488525119,0.5266433,69134.0,69133.0,0.61132019]
[1729488525581,0.5266433,69134.0,69133.0,0.61832019]
[1729488526291,0.5266433,69134.0,69133.0,0.53248258]
[1729488526509,0.5266433,69134.0,69133.0,0.6183108]
[1729488526750,0.5266433,69134.0,69133.0,0.6253108]
[1729488528321,0.5266433,69134.0,69133.0,0.62531456]
[1729488528758,0.5266433,69134.0,69133.0,0.53948634]
[1729488531487,0.5266433,69134.0,69133.0,0.53248634]
[1729488531960,0.5266433,69134.0,69133.0,0.53949823]
[1729488532420,0.5266433,69134.0,69133.0,0.52875989]
[1729488532635,0.5266433,69134.0,69133.0,0.55667957]
[1729488532853,0.5266433,69134.0,69133.0,0.54967957]
[1729488533301,0.5266433,69134.0,69133.0,0.63974974]